fUST/lending_fUST_20250223
["ID","MTS","AMOUNT","RATE_DAILY","PERIOD"]
[354116759,1740256243011,-580.17262412,0.00015836,2]
[354116760,1740256243021,-605.43537759,0.00015865,2]
[354116761,1740256243030,-293.28,0.00015894,2]
[354116762,1740256243039,-175.10393574,0.00015899,2]
[354116763,1740256243048,-500.0,0.00015899,2]
[354116764,1740256243058,-241296.74508993,0.000159,2]
[354116765,1740256243067,-156.03043341,0.00015918,2]
[354116766,1740256243076,-500.0,0.00015918,2]
[354116767,1740256243085,-2107.7,0.00015918,2]
[354116768,1740256243094,-500.0,0.00015918,2]
[354116769,1740256243103,-5363.26574297,0.00015948,2]
[354116775,1740256245839,-502.75,0.0001252,2]
[354116776,1740256245901,-2111.90000002,0.0001252,2]
[354116777,1740256245960,-1885.34999998,0.0001252,2]
[354116778,1740256245970,-500.0,0.00015899,2]
[354116779,1740256245979,-273.16153027,0.00015899,2]
[354116780,1740256245988,-35881.07869479,0.00015948,2]
[354116781,1740256353306,-150.0,0.00010959,2]
[354116782,1740256354789,-6.13,0.00010959,2]
[354116783,1740256363134,-150.0,0.00010959,2]
[354116784,1740256620435,-150.0,0.00010959,2]
[354116785,1740256622603,-150.0,0.00010959,2]
[354116786,1740256627315,-150.0,0.00010959,2]
[354116788,1740256805928,-150.0,0.00010959,2]
[354116789,1740256807512,-30.69,0.00010959,2]
[354116791,1740257075120,-150.0,9.041e-05,2]
[354116792,1740257076724,-88.222542,9.041e-05,2]
[354116857,1740257432094,-327.24574946,0.0001351,2]
[354116860,1740257432103,-1986.1583444,0.0001361,2]
[354116862,1740257432113,-197.6280715,0.0001379,2]
[354116864,1740257432122,-4500.0,0.0001389,2]
[354116866,1740257432131,-206.71996,0.00014064,2]
[354116868,1740257432140,-174.91972349,0.00014481,2]
[354116870,1740257432149,-300.0,0.00014497,2]
[354116872,1740257432157,-500.0,0.00014498,2]
[354116874,1740257432166,-500.0,0.00014498,2]
[354116875,1740257432175,-500.0,0.00014498,2]
[354116877,1740257432184,-500.0,0.00014498,2]
[354116880,1740257432194,-259.74649188,0.00014498,2]
[354116885,1740257432296,-500.0,0.00014498,2]
[354116886,1740257432306,-500.0,0.00014498,2]
[354116887,1740257432315,-500.0,0.00014498,2]
[354116888,1740257432325,-500.0,0.00014498,2]
[354116889,1740257432334,-500.0,0.00014498,2]
[354116890,1740257432343,-2444.37,0.00014498,2]
[354116892,1740257432353,-500.0,0.00014498,2]
[354116894,1740257432362,-500.0,0.00014498,2]
[354116896,1740257432371,-500.0,0.00014498,2]
[354116898,1740257432380,-2199.91,0.00014498,2]
[354116900,1740257432390,-695.52,0.00014498,2]
[354116901,1740257432399,-500.0,0.00014498,2]
[354116902,1740257432408,-500.0,0.00014498,2]
[354116903,1740257432417,-500.0,0.00014498,2]
[354116904,1740257432429,-500.0,0.00014498,2]
[354116905,1740257432438,-500.0,0.00014498,2]
[354116906,1740257432448,-500.0,0.00014498,2]
[354116907,1740257432457,-500.0,0.00014498,2]
[354116908,1740257432466,-500.0,0.00014498,2]
[354116909,1740257432476,-500.0,0.00014498,2]
[354116910,1740257432486,-500.0,0.00014498,2]
[354116911,1740257432496,-500.0,0.00014499,2]
[354116912,1740257432505,-502.71694892,0.00014499,2]
[354116913,1740257432515,-500.0,0.00014499,2]
[354116914,1740257432524,-501.69299135,0.00014499,2]
[354116915,1740257432534,-500.0,0.00014499,2]
[354116916,1740257432543,-500.0,0.00014499,2]
[354116917,1740257432553,-500.0,0.00014499,2]
[354116918,1740257432562,-500.0,0.00014499,2]
[354116919,1740257432571,-500.0,0.00014499,2]
[354116920,1740257432581,-500.0,0.00014499,2]
[354116921,1740257432590,-500.0,0.00014499,2]
[354116922,1740257432599,-500.0,0.00014499,2]
[354116923,1740257432608,-500.0,0.00014499,2]
[354116924,1740257432617,-500.0,0.00014499,2]
[354116925,1740257432627,-500.0,0.00014499,2]
[354116926,1740257432636,-500.0,0.00014499,2]
[354116927,1740257432645,-229.8494914,0.00014499,2]
[354116928,1740257432655,-500.0,0.00014499,2]
[354116929,1740257432664,-500.0,0.00014499,2]
[354116930,1740257432673,-315.47875821,0.00014499,2]
[354116931,1740257432683,-150.04621078,0.00014499,2]
[354116932,1740257432692,-503.3606704,0.00014499,2]
[354116933,1740257432701,-500.0,0.00014499,2]
[354116934,1740257432710,-500.0,0.00014499,2]
[354116935,1740257432719,-500.0,0.00014499,2]
[354116936,1740257432728,-500.0,0.00014499,2]
[354116937,1740257432738,-540.37,0.00014499,2]
[354116938,1740257432748,-509.15337383,0.00014499,2]
[354116939,1740257432757,-506.73045002,0.00014499,2]
[354116940,1740257432766,-500.0,0.00014499,2]
[354116941,1740257432776,-500.0,0.00014499,2]
[354116942,1740257432786,-500.0,0.00014499,2]
[354116943,1740257432796,-500.0,0.00014499,2]
[354116944,1740257432805,-500.0,0.00014499,2]
[354116945,1740257432815,-500.0,0.00014499,2]
[354116946,1740257432824,-500.0,0.00014499,2]
[354116947,1740257432833,-500.0,0.00014499,2]
[354116948,1740257432842,-500.9795614,0.00014499,2]
[354116949,1740257432851,-385.39539745,0.00014499,2]
[354116950,1740257432860,-500.0,0.00014499,2]
[354116951,1740257432870,-500.0,0.00014499,2]
[354116952,1740257432879,-500.0,0.00014499,2]
[354116953,1740257432890,-507.92340326,0.00014499,2]
[354116954,1740257432899,-500.0,0.00014499,2]
[354116955,1740257432910,-500.0,0.00014499,2]
[354116956,1740257432921,-500.0,0.00014499,2]
[354116957,1740257432930,-500.0,0.00014499,2]
[354116958,1740257432940,-500.0,0.00014499,2]
[354116959,1740257432950,-500.0,0.00014499,2]
[354116960,1740257432962,-500.0,0.00014499,2]
[354116961,1740257432977,-500.26244051,0.00014499,2]
[354116962,1740257432994,-500.0,0.00014499,2]
[354116963,1740257433005,-500.0,0.00014499,2]
[354116964,1740257433015,-500.0,0.00014499,2]
[354116965,1740257433024,-500.0,0.00014499,2]
[354116966,1740257433033,-500.0,0.00014499,2]
[354116967,1740257433043,-500.0,0.00014499,2]
[354116968,1740257433052,-340.38517673,0.00014499,2]
[354116969,1740257433062,-501.24955235,0.00014499,2]
[354116970,1740257433071,-500.0,0.00014499,2]
[354116971,1740257433080,-500.0,0.00014499,2]
[354116972,1740257433090,-500.0,0.00014499,2]
[354116973,1740257433100,-500.0,0.00014499,2]
[354116974,1740257433110,-500.0,0.00014499,2]
[354116975,1740257433120,-500.0,0.00014499,2]
[354116976,1740257433130,-500.0,0.00014499,2]
[354116977,1740257433139,-500.0,0.00014499,2]
[354116978,1740257433149,-500.0,0.00014499,2]
[354116979,1740257433159,-3052.19,0.00014499,2]
[354116980,1740257433169,-501.83046628,0.00014499,2]
[354116981,1740257433179,-506.44761698,0.00014499,2]
[354116982,1740257433189,-500.0,0.00014499,2]
[354116983,1740257433199,-629.80154076,0.00014499,2]
[354116984,1740257433208,-500.0,0.00014499,2]
[354116985,1740257433218,-500.0,0.00014499,2]
[354116986,1740257433227,-500.0,0.00014499,2]
[354116987,1740257433236,-500.0,0.00014499,2]
[354116988,1740257433247,-501.30934755,0.00014499,2]
[354116989,1740257433257,-500.0,0.00014499,2]
[354116990,1740257433267,-504.08652516,0.00014499,2]
[354116991,1740257433276,-500.0,0.00014499,2]
[354116992,1740257433286,-500.0,0.00014499,2]
[354116993,1740257433294,-309.43324102,0.00014499,2]
[354116994,1740257433304,-500.0,0.00014499,2]
[354116995,1740257433315,-500.0,0.00014499,2]
[354116996,1740257433325,-500.0,0.00014499,2]
[354116997,1740257433336,-500.0,0.00014499,2]
[354116998,1740257433346,-510.80773471,0.00014499,2]
[354116999,1740257433356,-500.0,0.00014499,2]
[354117000,1740257433366,-500.0,0.00014499,2]
[354117001,1740257433376,-500.0,0.00014499,2]
[354117002,1740257433385,-615.68,0.00014499,2]
[354117003,1740257433395,-500.0,0.00014499,2]
[354117004,1740257433404,-500.0,0.00014499,2]
[354117005,1740257433414,-523.05,0.00014499,2]
[354117006,1740257433424,-500.0,0.00014499,2]
[354117007,1740257433434,-500.0,0.00014499,2]
[354117008,1740257433443,-500.0,0.00014499,2]
[354117009,1740257433453,-615.34648727,0.00014499,2]
[354117010,1740257433463,-500.0,0.00014499,2]
[354117011,1740257433472,-500.0,0.00014499,2]
[354117012,1740257433481,-507.16011455,0.00014499,2]
[354117013,1740257433491,-500.0,0.00014499,2]
[354117014,1740257433501,-500.0,0.00014499,2]
[354117015,1740257433511,-500.0,0.00014499,2]
[354117016,1740257433520,-500.0,0.00014499,2]
[354117017,1740257433529,-500.0,0.00014499,2]
[354117018,1740257433539,-500.0,0.00014499,2]
[354117019,1740257433548,-500.0,0.00014499,2]
[354117020,1740257433558,-500.0,0.00014499,2]
[354117021,1740257433567,-500.0,0.00014499,2]
[354117022,1740257433576,-500.0,0.00014499,2]
[354117023,1740257433586,-17888.7,0.00014499,2]
[354117024,1740257433596,-500.0,0.00014499,2]
[354117025,1740257433606,-566.2,0.00014499,2]
[354117026,1740257433615,-795.31,0.00014499,2]
[354117027,1740257433625,-500.0,0.00014499,2]
[354117028,1740257433634,-500.0,0.00014499,2]
[354117029,1740257433644,-500.0,0.00014499,2]
[354117030,1740257433654,-500.0,0.00014499,2]
[354117031,1740257433663,-500.0,0.00014499,2]
[354117032,1740257433673,-500.0,0.00014499,2]
[354117033,1740257433683,-449.46208928,0.00014499,2]
[354117034,1740257433692,-500.0,0.00014499,2]
[354117035,1740257433701,-500.0,0.00014499,2]
[354117036,1740257433711,-500.0,0.00014499,2]
[354117037,1740257433721,-2444.37,0.00014499,2]
[354117038,1740257433730,-2444.37,0.00014499,2]
[354117039,1740257433740,-2444.37,0.00014499,2]
[354117040,1740257433750,-2444.37,0.00014499,2]
[354117041,1740257433760,-2444.37,0.00014499,2]
[354117042,1740257433770,-156.10010583,0.00014499,2]
[354117043,1740257433780,-570.43118215,0.00014499,2]
[354117044,1740257433790,-500.0,0.00014499,2]
[354117045,1740257433800,-500.0,0.00014499,2]
[354117046,1740257433809,-517.24813501,0.00014499,2]
[354117047,1740257433819,-505.33559879,0.00014499,2]
[354117048,1740257433829,-500.0,0.00014499,2]
[354117049,1740257433838,-500.0,0.00014499,2]
[354117050,1740257433847,-1242.69,0.00014499,2]
[354117051,1740257433857,-500.0,0.00014499,2]
[354117052,1740257433867,-500.0,0.00014499,2]
[354117053,1740257433876,-500.0,0.00014499,2]
[354117054,1740257433886,-500.0,0.00014499,2]
[354117055,1740257433896,-506.34203787,0.00014499,2]
[354117056,1740257433906,-501.20050392,0.00014499,2]
[354117057,1740257433918,-500.6019069,0.00014499,2]
[354117058,1740257433928,-500.0,0.00014499,2]
[354117059,1740257433938,-500.0,0.00014499,2]
[354117060,1740257433948,-500.0,0.00014499,2]
[354117061,1740257433959,-500.0,0.00014499,2]
[354117062,1740257433968,-500.0,0.00014499,2]
[354117063,1740257433977,-500.92229942,0.00014499,2]
[354117064,1740257433987,-500.0,0.00014499,2]
[354117065,1740257433996,-511.4203264,0.00014499,2]
[354117066,1740257434007,-500.0,0.00014499,2]
[354117067,1740257434017,-500.0,0.00014499,2]
[354117068,1740257434028,-501.14785152,0.00014499,2]
[354117069,1740257434045,-500.0,0.00014499,2]
[354117070,1740257434055,-500.0,0.00014499,2]
[354117071,1740257434064,-500.0,0.00014499,2]
[354117072,1740257434078,-500.0,0.00014499,2]
[354117073,1740257434088,-500.0,0.000145,2]
[354117074,1740257434098,-500.0,0.000145,2]
[354117075,1740257434118,-627.30091157,0.000145,2]
[354117076,1740257434129,-500.0,0.000145,2]
[354117077,1740257434139,-500.0,0.000145,2]
[354117078,1740257434149,-500.0,0.000145,2]
[354117079,1740257434158,-500.58692819,0.000145,2]
[354117080,1740257434168,-500.0,0.000145,2]
[354117081,1740257434178,-500.0,0.000145,2]
[354117082,1740257434188,-500.0,0.000145,2]
[354117083,1740257434197,-500.0,0.000145,2]
[354117084,1740257434207,-500.0,0.000145,2]
[354117085,1740257434217,-500.0,0.000145,2]
[354117086,1740257434227,-500.0,0.000145,2]
[354117087,1740257434237,-500.0,0.000145,2]
[354117088,1740257434247,-500.0,0.000145,2]
[354117089,1740257434257,-500.0,0.000145,2]
[354117090,1740257434266,-500.0,0.000145,2]
[354117091,1740257434275,-500.0,0.000145,2]
[354117092,1740257434285,-500.0,0.000145,2]
[354117093,1740257434294,-589.29002802,0.000145,2]
[354117094,1740257434304,-500.0,0.000145,2]
[354117095,1740257434313,-500.0,0.000145,2]
[354117096,1740257434323,-500.0,0.000145,2]
[354117097,1740257434332,-500.0,0.000145,2]
[354117098,1740257434341,-500.0,0.000145,2]
[354117099,1740257434351,-500.0,0.000145,2]
[354117100,1740257434360,-500.0,0.000145,2]
[354117101,1740257434369,-500.0,0.000145,2]
[354117102,1740257434379,-500.49624216,0.000145,2]
[354117103,1740257434388,-500.0,0.000145,2]
[354117104,1740257434398,-500.0,0.000145,2]
[354117105,1740257434406,-500.0,0.000145,2]
[354117106,1740257434415,-500.0,0.000145,2]
[354117107,1740257434425,-500.0,0.000145,2]
[354117108,1740257434435,-500.0,0.000145,2]
[354117109,1740257434445,-500.0,0.000145,2]
[354117110,1740257434454,-500.0,0.000145,2]
[354117111,1740257434464,-501.09396162,0.000145,2]
[354117112,1740257434473,-500.0,0.000145,2]
[354117113,1740257434589,-500.0,0.000145,2]
[354117114,1740257434599,-500.0,0.000145,2]
[354117115,1740257434609,-500.0,0.000145,2]
[354117116,1740257434618,-500.0,0.000145,2]
[354117117,1740257434627,-500.0,0.000145,2]
[354117118,1740257434637,-500.0,0.000145,2]
[354117119,1740257434647,-500.0,0.000145,2]
[354117120,1740257434656,-500.0,0.000145,2]
[354117121,1740257434665,-500.0,0.000145,2]
[354117122,1740257434675,-500.0,0.000145,2]
[354117123,1740257434684,-500.0,0.000145,2]
[354117124,1740257434693,-500.0,0.000145,2]
[354117125,1740257434702,-500.0,0.000145,2]
[354117126,1740257434711,-500.0,0.000145,2]
[354117127,1740257434720,-500.0,0.000145,2]
[354117128,1740257434729,-500.0,0.000145,2]
[354117129,1740257434740,-500.0,0.000145,2]
[354117130,1740257434749,-500.0,0.000145,2]
[354117131,1740257434759,-500.0,0.000145,2]
[354117132,1740257434767,-500.0,0.000145,2]
[354117133,1740257434778,-500.0,0.000145,2]
[354117134,1740257434787,-500.0,0.000145,2]
[354117135,1740257434796,-500.0,0.000145,2]
[354117136,1740257434805,-500.0,0.000145,2]
[354117137,1740257434814,-500.0,0.000145,2]
[354117138,1740257434824,-500.0,0.000145,2]
[354117139,1740257434833,-500.0,0.000145,2]
[354117140,1740257434842,-500.0,0.000145,2]
[354117141,1740257434852,-500.0,0.000145,2]
[354117142,1740257434861,-500.0,0.000145,2]
[354117143,1740257434871,-500.0,0.000145,2]
[354117144,1740257434880,-500.0,0.000145,2]
[354117145,1740257434889,-503.54658963,0.000145,2]
[354117146,1740257434898,-500.0,0.000145,2]
[354117147,1740257434908,-259.40794356,0.000145,2]
[354117148,1740257434920,-500.0,0.000145,2]
[354117149,1740257434930,-500.0,0.000145,2]
[354117150,1740257434939,-500.0,0.000145,2]
[354117151,1740257434948,-500.0,0.000145,2]
[354117152,1740257434958,-500.0,0.000145,2]
[354117153,1740257434967,-500.0,0.000145,2]
[354117154,1740257434976,-500.0,0.000145,2]
[354117155,1740257434986,-500.42332543,0.000145,2]
[354117156,1740257434996,-500.0,0.000145,2]
[354117157,1740257435005,-500.0,0.000145,2]
[354117158,1740257435013,-500.0,0.000145,2]
[354117159,1740257435023,-500.0,0.000145,2]
[354117160,1740257435032,-500.0,0.000145,2]
[354117161,1740257435043,-500.0,0.000145,2]
[354117162,1740257435052,-500.0,0.000145,2]
[354117163,1740257435061,-504.3178462,0.000145,2]
[354117164,1740257435071,-500.0,0.000145,2]
[354117165,1740257435081,-500.0,0.000145,2]
[354117166,1740257435090,-194.66946926,0.000145,2]
[354117167,1740257435101,-500.0,0.000145,2]
[354117168,1740257435111,-551.63162333,0.000145,2]
[354117169,1740257435120,-500.0,0.000145,2]
[354117170,1740257435131,-501.87346695,0.000145,2]
[354117171,1740257435143,-500.0,0.000145,2]
[354117172,1740257435153,-500.0,0.000145,2]
[354117173,1740257435163,-500.0,0.000145,2]
[354117174,1740257435172,-500.0,0.000145,2]
[354117175,1740257435183,-500.0,0.000145,2]
[354117176,1740257435192,-500.0,0.000145,2]
[354117177,1740257435201,-500.0,0.000145,2]
[354117178,1740257435210,-500.0,0.000145,2]
[354117179,1740257435221,-500.0,0.000145,2]
[354117180,1740257435232,-500.0,0.000145,2]
[354117181,1740257435241,-511.61979312,0.000145,2]
[354117182,1740257435250,-500.0,0.000145,2]
[354117183,1740257435260,-500.0,0.000145,2]
[354117184,1740257435269,-500.98793775,0.000145,2]
[354117185,1740257435279,-500.0,0.000145,2]
[354117186,1740257435288,-500.0,0.000145,2]
[354117187,1740257435297,-500.0,0.000145,2]
[354117188,1740257435306,-500.0,0.000145,2]
[354117189,1740257435315,-3052.19,0.000145,2]
[354117190,1740257435325,-3052.19,0.000145,2]
[354117191,1740257435334,-500.0,0.000145,2]
[354117192,1740257435344,-500.0,0.000145,2]
[354117193,1740257435353,-500.0,0.000145,2]
[354117194,1740257435363,-500.0,0.000145,2]
[354117195,1740257435373,-500.0,0.000145,2]
[354117196,1740257435383,-500.0,0.000145,2]
[354117197,1740257435392,-500.0,0.000145,2]
[354117198,1740257435402,-500.0,0.000145,2]
[354117199,1740257435411,-500.0,0.000145,2]
[354117200,1740257435421,-500.0,0.000145,2]
[354117201,1740257435432,-500.0,0.000145,2]
[354117202,1740257435442,-500.0,0.000145,2]
[354117203,1740257435452,-500.0,0.000145,2]
[354117204,1740257435462,-500.0,0.000145,2]
[354117205,1740257435472,-500.0,0.000145,2]
[354117206,1740257435482,-500.0,0.000145,2]
[354117207,1740257435493,-500.30745833,0.000145,2]
[354117208,1740257435502,-500.0,0.000145,2]
[354117209,1740257435512,-500.0,0.000145,2]
[354117210,1740257435522,-500.0,0.000145,2]
[354117211,1740257435531,-500.0,0.000145,2]
[354117212,1740257435541,-2444.37,0.000145,2]
[354117213,1740257435550,-500.0,0.000145,2]
[354117214,1740257435560,-500.0,0.000145,2]
[354117215,1740257435570,-500.0,0.000145,2]
[354117216,1740257435583,-500.0,0.000145,2]
[354117217,1740257435596,-500.0,0.000145,2]
[354117218,1740257435609,-500.0,0.000145,2]
[354117219,1740257435622,-500.0,0.000145,2]
[354117220,1740257435635,-500.0,0.000145,2]
[354117221,1740257435646,-500.0,0.000145,2]
[354117222,1740257435656,-500.0,0.000145,2]
[354117223,1740257435669,-500.0,0.000145,2]
[354117224,1740257435680,-500.0,0.000145,2]
[354117225,1740257435692,-500.0,0.000145,2]
[354117226,1740257435704,-30963.6702869,0.00014501,2]
[354117227,1740257435716,-500.0,0.00014509,2]
[354117228,1740257435728,-2444.37,0.00014509,2]
[354117229,1740257435739,-12924.89674434,0.0001451,2]
[354117230,1740257435753,-500.0,0.00014573,2]
[354117231,1740257435765,-500.0,0.0001458,2]
[354117232,1740257435778,-500.0,0.0001458,2]
[354117233,1740257435791,-500.0,0.0001458,2]
[354117234,1740257435802,-500.0,0.0001458,2]
[354117235,1740257435813,-500.0,0.0001458,2]
[354117236,1740257435826,-500.0,0.0001458,2]
[354117237,1740257435837,-2444.37,0.0001458,2]
[354117238,1740257435849,-500.0,0.0001458,2]
[354117239,1740257435862,-2199.91,0.0001458,2]
[354117240,1740257435874,-695.52,0.0001458,2]
[354117241,1740257435884,-500.0,0.0001458,2]
[354117242,1740257435896,-500.0,0.0001458,2]
[354117243,1740257435908,-500.0,0.0001458,2]
[354117244,1740257435919,-500.0,0.0001458,2]
[354117245,1740257435931,-40686.11536164,0.00014581,5]
[354117246,1740257435942,-500.0,0.00014581,2]
[354117247,1740257435954,-540.37,0.00014581,2]
[354117248,1740257435966,-500.0,0.00014581,2]
[354117249,1740257435978,-500.0,0.00014581,2]
[354117250,1740257435993,-500.0,0.00014581,2]
[354117251,1740257436006,-500.0,0.00014581,2]
[354117252,1740257436018,-3052.19,0.00014581,2]
[354117253,1740257436030,-500.0,0.00014581,2]
[354117254,1740257436043,-500.0,0.00014581,2]
[354117255,1740257436055,-620.3,0.00014581,2]
[354117256,1740257436068,-230.64,0.00014581,2]
[354117257,1740257436078,-500.0,0.00014581,2]
[354117258,1740257436088,-500.0,0.00014581,2]
[354117259,1740257436098,-17888.7,0.00014581,2]
[354117260,1740257436108,-566.2,0.00014581,2]
[354117261,1740257436119,-795.31,0.00014581,2]
[354117262,1740257436130,-500.0,0.00014581,2]
[354117263,1740257436143,-162.16,0.00014581,2]
[354117264,1740257436155,-500.0,0.00014581,2]
[354117265,1740257436166,-2444.37,0.00014581,2]
[354117266,1740257436176,-1242.69,0.00014581,2]
[354117267,1740257436186,-500.0,0.00014581,2]
[354117268,1740257436196,-500.0,0.00014582,2]
[354117269,1740257436208,-500.0,0.00014582,2]
[354117270,1740257436220,-635.82,0.00014582,2]
[354117271,1740257436231,-500.0,0.00014582,2]
[354117272,1740257436242,-500.0,0.00014582,2]
[354117273,1740257436252,-500.0,0.00014582,2]
[354117274,1740257436262,-500.0,0.00014582,2]
[354117275,1740257436272,-631.14,0.00014582,2]
[354117276,1740257436283,-500.0,0.00014582,2]
[354117277,1740257436293,-500.0,0.00014582,2]
[354117278,1740257436303,-500.0,0.00014582,2]
[354117279,1740257436313,-500.0,0.00014582,2]
[354117280,1740257436324,-500.0,0.00014582,2]
[354117281,1740257436334,-500.0,0.00014582,2]
[354117282,1740257436345,-569.54,0.00014582,2]
[354117283,1740257436355,-500.0,0.00014582,2]
[354117284,1740257436366,-528.12,0.00014582,2]
[354117285,1740257436376,-500.0,0.00014582,2]
[354117286,1740257436387,-500.0,0.00014582,2]
[354117287,1740257436397,-500.0,0.00014582,2]
[354117288,1740257436408,-500.0,0.00014582,2]
[354117289,1740257436418,-500.0,0.00014582,2]
[354117290,1740257436429,-500.0,0.00014582,2]
[354117291,1740257436439,-520.8,0.00014582,2]
[354117292,1740257436451,-500.0,0.00014662,2]
[354117293,1740257436461,-500.0,0.00014662,2]
[354117294,1740257436472,-500.0,0.00014662,2]
[354117295,1740257436482,-500.0,0.00014662,2]
[354117296,1740257436493,-500.0,0.00014662,2]
[354117297,1740257436503,-2199.91,0.00014662,2]
[354117298,1740257436514,-695.52,0.00014662,2]
[354117299,1740257436524,-500.0,0.00014662,2]
[354117300,1740257436535,-500.0,0.00014662,2]
[354117301,1740257436546,-500.0,0.00014662,2]
[354117302,1740257436556,-460.42,0.00014662,2]
[354117303,1740257436567,-2444.37,0.00014663,2]
[354117304,1740257436578,-2444.37,0.00014663,2]
[354117305,1740257436588,-74623.91893253,0.00014664,5]
[354117306,1740257436599,-380.16,0.00014664,2]
[354117307,1740257436609,-500.0,0.00014664,2]
[354117308,1740257436620,-500.0,0.00014664,2]
[354117309,1740257436631,-244.42,0.00014664,2]
[354117310,1740257436641,-249.46,0.00014664,2]
[354117311,1740257436652,-363.42,0.00014664,2]
[354117312,1740257436663,-500.0,0.00014664,2]
[354117313,1740257436673,-625.21623682,0.00014664,2]
[354117314,1740257436684,-262.84,0.00014664,2]
[354117315,1740257436694,-261.9,0.00014664,2]
[354117316,1740257436705,-592.3,0.00014664,2]
[354117317,1740257436715,-500.0,0.00014664,2]
[354117318,1740257436834,-540.37,0.00014664,2]
[354117319,1740257436851,-500.0,0.00014664,2]
[354117320,1740257436861,-500.0,0.00014664,2]
[354117321,1740257436870,-500.0,0.00014664,2]
[354117322,1740257436879,-500.0,0.00014664,2]
[354117323,1740257436888,-500.0,0.00014664,2]
[354117324,1740257436898,-500.0,0.00014664,2]
[354117325,1740257436907,-500.0,0.00014664,2]
[354117326,1740257436919,-627.47,0.00014664,2]
[354117327,1740257436928,-500.0,0.00014664,2]
[354117328,1740257436938,-266.77,0.00014664,2]
[354117329,1740257436947,-500.0,0.00014664,2]
[354117330,1740257436957,-500.0,0.00014664,2]
[354117331,1740257436967,-17888.7,0.00014664,2]
[354117332,1740257436976,-252.44,0.00014664,2]
[354117333,1740257436986,-566.2,0.00014664,2]
[354117334,1740257436996,-795.31,0.00014664,2]
[354117335,1740257437006,-500.0,0.00014664,2]
[354117336,1740257437015,-500.0,0.00014664,2]
[354117337,1740257437028,-1242.69,0.00014664,2]
[354117338,1740257437037,-500.0,0.00014664,2]
[354117339,1740257437046,-500.0,0.00014744,2]
[354117340,1740257437055,-240.19773553,0.00014744,2]
[354117341,1740257437064,-500.0,0.00014744,2]
[354117342,1740257437075,-500.0,0.00014744,2]
[354117343,1740257437085,-500.0,0.00014744,2]
[354117344,1740257437096,-2199.91,0.00014744,2]
[354117345,1740257437105,-695.52,0.00014744,2]
[354117346,1740257437114,-500.0,0.00014744,2]
[354117347,1740257437123,-500.0,0.00014744,2]
[354117348,1740257437132,-500.0,0.00014744,2]
[354117349,1740257437142,-2444.37,0.00014745,2]
[354117350,1740257437151,-500.0,0.00014746,2]